fUST/lending_fUST_20260107
["ID","MTS","AMOUNT","RATE_DAILY","PERIOD"]
[400568225,1767726266030,245.71,8.845e-05,2]
[400568226,1767726266458,327.61,9.23e-05,2]
[400568229,1767726316891,5000.0,9.275e-05,2]
[400568230,1767726339694,4262.88,9.275e-05,2]
[400568231,1767726339718,737.12,9.275e-05,2]
[400568232,1767726343025,154.72,5.744e-05,2]
[400568233,1767726343453,232.09,6.005e-05,2]
[400568234,1767726343895,309.45,6.266e-05,2]
[400568235,1767726344340,386.81,6.527e-05,2]
[400568236,1767726344770,464.17,6.788e-05,2]
[400568237,1767726345192,541.53,7.05e-05,2]
[400568238,1767726345647,618.89,7.311e-05,2]
[400568239,1767726346068,696.26,7.572e-05,2]
[400568240,1767726346466,773.62,7.833e-05,2]
[400568245,1767726420674,157.9,6.746e-05,2]
[400568246,1767726421119,184.22,7.005e-05,2]
[400568247,1767726421541,210.53,7.264e-05,2]
[400568248,1767726421960,236.85,7.524e-05,2]
[400568249,1767726422393,263.16,7.783e-05,2]
[400568289,1767726622535,-163.5832469,0.00010186,2]
[400568290,1767726624707,-244.17662665,0.00010186,2]
[400568291,1767726629029,-205.74623607,0.00010186,2]
[400568308,1767726632406,-4386.49389038,0.00010186,2]
[400568309,1767726632416,-563.0,0.00010186,2]
[400568310,1767726632425,-158.45507774,0.00010341,2]
[400568312,1767726632435,-200.0,0.00011189,20]
[400568314,1767726632444,-186.97699174,0.00012341,2]
[400568316,1767726632453,-500.0,0.00013699,2]
[400568318,1767726632462,-171.16142454,0.00014175,2]
[400568319,1767726632471,-209.85354718,0.00014175,2]
[400568320,1767726632481,-259.95798743,0.00014175,2]
[400568321,1767726632492,-313.64087012,0.00014247,2]
[400568323,1767726632501,-215.49890573,0.00014341,2]
[400568324,1767726632511,-319.29139638,0.00014903,2]
[400568326,1767726632522,-679.6366844,0.00014955,2]
[400568327,1767726632531,-1000.0,0.00015,2]
[400568328,1767726632540,-168.07768,0.00015068,2]
[400568330,1767726632550,-300.0,0.00015299,2]
[400568332,1767726632559,-300.0,0.00015299,2]
[400568333,1767726632568,-300.0,0.00015299,2]
[400568335,1767726632577,-300.0,0.00015299,2]
[400568337,1767726632586,-300.0,0.00015299,2]
[400568338,1767726632596,-300.0,0.00015299,2]
[400568339,1767726632606,-300.0,0.00015299,2]
[400568340,1767726632616,-174.0187686,0.00015658,2]
[400568341,1767726632626,-244.02081973,0.00016341,2]
[400568342,1767726632636,-1041.66666667,0.0001642,2]
[400568343,1767726632645,-386.59191894,0.00016424,5]
[400568344,1767726632655,-5829.22887528,0.00016526,2]
[400568345,1767726632665,-9629.01643326,0.0001699,2]
[400568346,1767726632677,-51699.67012184,0.0001699,2]
[400568347,1767726632686,-170.484,0.00017554,2]
[400568348,1767726632695,-285.75793298,0.0001776,2]
[400568349,1767726632704,-539.85275544,0.00017888,2]
[400568350,1767726632713,-240.99927201,0.00017888,2]
[400568351,1767726632723,-539.85275544,0.00017888,2]
[400568352,1767726632732,-500.0,0.00017888,2]
[400568353,1767726632741,-539.85275544,0.00017888,2]
[400568354,1767726632750,-539.85275544,0.00017888,2]
[400568355,1767726632760,-217.33973934,0.00017888,2]
[400568356,1767726632772,-190.38131108,0.00017888,2]
[400568357,1767726632781,-434.98050485,0.00017888,2]
[400568358,1767726632792,-104.87225059,0.00017888,2]
[400568359,1767726632801,-403.88634156,0.00017888,2]
[400568360,1767726632812,-135.96641388,0.00017888,2]
[400568361,1767726632822,-340.55358612,0.00017888,2]
[400568365,1767726638645,-199.29916932,0.00017888,2]
[400568366,1767726638657,-242.40163068,0.00017888,2]
[400568367,1767726638670,-253.51911545,0.00017888,2]
[400568368,1767726638689,-4.07925387,0.00017888,2]
[400568369,1767726638700,-539.85275544,0.00017888,2]
[400568370,1767726638711,-539.85275544,0.00017888,2]
[400568371,1767726638721,-539.85275544,0.00017888,2]
[400568372,1767726638731,-539.85275544,0.00017888,2]
[400568373,1767726638741,-539.85275544,0.00017888,2]
[400568374,1767726638751,-539.85275544,0.00017888,2]
[400568375,1767726638761,-539.85275544,0.00017888,2]
[400568376,1767726638772,-539.85275544,0.00017888,2]
[400568377,1767726638782,-539.85275544,0.00017888,2]
[400568378,1767726638791,-539.85275544,0.00017888,2]
[400568379,1767726638801,-539.85275544,0.00017888,2]
[400568380,1767726638810,-539.85275544,0.00017888,2]
[400568381,1767726638819,-539.85275544,0.00017888,2]
[400568382,1767726638829,-575.84293915,0.00017888,2]
[400568383,1767726638838,-575.84293915,0.00017888,2]
[400568384,1767726638848,-575.84293915,0.00017888,2]
[400568385,1767726638858,-575.84293915,0.00017888,2]
[400568386,1767726638867,-575.84293915,0.00017888,2]
[400568387,1767726638877,-575.84293915,0.00017888,2]
[400568388,1767726638887,-575.84293915,0.00017888,2]
[400568389,1767726638896,-575.84293915,0.00017888,2]
[400568390,1767726638906,-575.84293915,0.00017888,2]
[400568391,1767726638915,-1000000.0,0.00017889,2]
[400568392,1767726638925,-600.0,0.00017905,2]
[400568393,1767726638936,-461.00815423,0.00017945,7]
[400568394,1767726638946,-272.54273372,0.00018341,2]
[400568395,1767726638956,-807.42,0.00018821,3]
[400568396,1767726638966,-648.93473211,0.00019178,2]
[400568397,1767726638980,-9786.72,0.000192,2]
[400568398,1767726638989,-154.73,0.000192,2]
[400568399,1767726639000,-180.03,0.000192,2]
[400568400,1767726639010,-1386.71,0.000192,2]
[400568401,1767726639019,-541.91506719,0.00019466,10]
[400568402,1767726639030,-720.0,0.00019696,2]
[400568403,1767726639040,-301.06464771,0.00020341,2]
[400568404,1767726639050,-276.0,0.00020575,3]
[400568405,1767726639060,-628.82837751,0.00020987,13]
[400568406,1767726639070,-864.0,0.00021665,10]
[400568407,1767726639080,-330.47,0.00022,2]
[400568408,1767726639089,-1702.35,0.00022,7]
[400568409,1767726639099,-329.58656171,0.00022341,2]
[400568410,1767726639108,-450.0,0.00022466,2]
[400568411,1767726639118,-721.35846279,0.00022507,16]
[400568412,1767726639127,-500.0,0.0002336,2]
[400568413,1767726639138,-330.47,0.000234,2]
[400568414,1767726639149,-2000.0,0.00023534,7]
[400568415,1767726639159,-9786.72,0.000237,2]
[400568416,1767726639352,-1386.71,0.000237,14]
[400568417,1767726639371,-1000.0,0.00023832,10]
[400568418,1767726639380,-819.18300105,0.00024028,19]
[400568419,1767726639390,-692.28331649,0.00024043,2]
[400568420,1767726639399,-500.0,0.00024155,2]
[400568421,1767726639408,-500.0,0.00024212,2]
[400568422,1767726639417,-558.62771462,0.00024314,2]
[400568423,1767726639426,-358.1084757,0.00024341,2]
[400568424,1767726639436,-500.0,0.00024349,2]
[400568425,1767726639445,-2000.0,0.00024357,7]
[400568426,1767726639454,-152.34848871,0.00024477,2]
[400568427,1767726639463,-380.0,0.00024658,2]
[400568428,1767726639472,-168.0,0.00024683,2]
[400568429,1767726639482,-330.47,0.000248,2]
[400568430,1767726639492,-1702.35,0.000248,7]
[400568431,1767726639502,-995.3526357,0.00024898,2]
[400568432,1767726639511,-151.0,0.000249,7]
[400568433,1767726639520,-151.0,0.000249,7]
[400568434,1767726639530,-151.0,0.000249,7]
[400568435,1767726639539,-151.0,0.000249,7]
[400568436,1767726639548,-151.0,0.000249,7]
[400568437,1767726639558,-151.0,0.000249,7]
[400568438,1767726639568,-1041.66666667,0.000249,7]
[400568439,1767726639578,-151.0,0.000249,7]
[400568440,1767726639587,-231.082805,0.000249,7]
[400568441,1767726639596,-151.0,0.000249,7]
[400568442,1767726639608,-151.0,0.000249,7]
[400568443,1767726639617,-2000.0,0.000249,7]
[400568444,1767726639627,-151.0,0.000249,7]
[400568445,1767726639637,-212136.98198011,0.000249,2]
[400568446,1767726639650,-15687.84131922,0.000249,2]
[400568447,1767726639661,-107739.94587903,0.000249,2]
[400568448,1767726639673,-2305.23354431,0.000249,2]
[400568452,1767726640734,-579.0,0.0002489,10]
[400568453,1767726641640,-3e-08,0.0002489,10]
[400568483,1767726646955,-500.0,0.00016989,2]
[400568484,1767726646964,-485.4047353,0.00016989,2]
[400568485,1767726646974,-14193.96999997,0.0002489,10]
[400568486,1767726646983,-27162.6859329,0.000249,2]
[400568487,1767726646994,-108669.37217497,0.000249,2]
[400568488,1767726694120,165.85,8.595e-05,2]
[400568489,1767726694624,186.59,8.902e-05,2]
[400568490,1767726695055,207.32,9.209e-05,2]
[400568491,1767726762318,174.44,6.706e-05,2]
[400568492,1767726762725,203.51,6.964e-05,2]
[400568493,1767726763129,232.59,7.222e-05,2]
[400568494,1767726763601,261.66,7.48e-05,2]
[400568495,1767726764542,290.73,7.738e-05,2]
[400568496,1767726772187,280.87612122,0.0002376,120]
[400568497,1767726794335,154.0,8.3e-07,2]
[400568514,1767726892013,263.9023653,0.00025185,120]
[400568515,1767726892071,216.99633355,0.00025185,120]
[400568517,1767726969126,187.5,6.441e-05,2]
[400568518,1767726969559,234.37,6.709e-05,2]
[400568519,1767726970080,281.25,6.978e-05,2]
[400568520,1767726970388,328.12,7.246e-05,2]
[400568521,1767726970786,374.99,7.515e-05,2]
[400568522,1767726971715,421.87,7.783e-05,2]
[400568526,1767726972664,468.74,8.051e-05,2]
[400568527,1767727044994,158.78,7.718e-05,2]
[400568677,1767727831613,-495.7436018,0.00011944,2]
[400568678,1767727831623,-5000.0,0.00012158,2]
[400568679,1767727831632,-592.0,0.00012158,2]
[400568680,1767727831642,-232.02859281,0.00012219,2]
[400568681,1767727831652,-300.0,0.0001228,2]
[400568682,1767727831661,-10000.0,0.00012281,2]
[400568683,1767727831671,-863.0898607,0.00012797,2]
[400568685,1767727831680,-500.0,0.00013272,2]
[400568687,1767727831691,-500.0,0.00013272,2]
[400568689,1767727831700,-500.0,0.00013272,2]
[400568691,1767727831709,-500.0,0.00013272,2]
[400568692,1767727831719,-500.0,0.00013272,2]
[400568693,1767727831728,-500.0,0.00013272,2]
[400568694,1767727831741,-500.0,0.00013272,2]
[400568695,1767727831750,-500.0,0.00013272,2]
[400568696,1767727831759,-500.0,0.00013272,2]
[400568698,1767727831769,-500.0,0.00013272,2]
[400568700,1767727831779,-500.0,0.00013272,2]
[400568701,1767727831788,-500.0,0.00013272,2]
[400568703,1767727831798,-500.0,0.00013272,2]
[400568704,1767727831807,-500.0,0.00013272,2]
[400568705,1767727831818,-500.0,0.00013272,2]
[400568707,1767727831827,-500.0,0.00013272,2]
[400568709,1767727831837,-500.0,0.00013272,2]
[400568711,1767727831846,-500.0,0.00013272,2]
[400568712,1767727831855,-500.0,0.00013272,2]
[400568714,1767727831865,-500.0,0.00013272,2]
[400568716,1767727831875,-500.0,0.00013272,2]
[400568717,1767727831885,-500.0,0.00013272,2]
[400568718,1767727831894,-500.0,0.00013272,2]
[400568719,1767727831904,-500.0,0.00013272,2]
[400568720,1767727831914,-500.0,0.00013272,2]
[400568722,1767727831923,-500.0,0.00013272,2]
[400568724,1767727831932,-500.0,0.00013272,2]
[400568726,1767727831942,-500.0,0.00013272,2]
[400568728,1767727831951,-500.0,0.00013272,2]
[400568729,1767727831961,-318.94671116,0.00013272,2]
[400568731,1767727831971,-500.0,0.00013272,2]
[400568732,1767727831980,-500.0,0.00013272,2]
[400568734,1767727831989,-500.0,0.00013272,2]
[400568735,1767727831998,-500.0,0.00013272,2]
[400568736,1767727832009,-500.0,0.00013272,2]
[400568737,1767727832018,-500.0,0.00013272,2]
[400568738,1767727832027,-500.0,0.00013272,2]
[400568739,1767727832036,-500.0,0.00013272,2]
[400568740,1767727832046,-500.0,0.00013272,2]
[400568741,1767727832065,-632.66098955,0.00013272,2]
[400568742,1767727832084,-500.0,0.00013272,2]
[400568743,1767727832105,-500.0,0.00013272,2]
[400568744,1767727832116,-500.0,0.00013272,2]
[400568745,1767727832126,-500.0,0.00013272,2]
[400568746,1767727832137,-500.0,0.00013272,2]
[400568747,1767727832147,-500.0,0.00013272,2]
[400568748,1767727832159,-500.0,0.00013272,2]
[400568749,1767727832171,-500.0,0.00013272,2]
[400568750,1767727832180,-156.41922919,0.00013272,2]
[400568751,1767727832190,-500.0,0.00013272,2]
[400568752,1767727832202,-500.0,0.00013272,2]
[400568753,1767727832212,-500.0,0.00013272,2]
[400568754,1767727832222,-500.0,0.00013272,2]
[400568755,1767727832231,-500.0,0.00013272,2]
[400568756,1767727832242,-500.0,0.00013272,2]
[400568757,1767727832252,-500.0,0.00013272,2]
[400568758,1767727832263,-500.0,0.00013272,2]
[400568759,1767727832271,-500.0,0.00013272,2]
[400568760,1767727832280,-500.0,0.00013272,2]
[400568761,1767727832290,-500.0,0.00013272,2]
[400568762,1767727832299,-500.0,0.00013272,2]
[400568763,1767727832309,-500.0,0.00013272,2]
[400568764,1767727832319,-500.0,0.00013272,2]
[400568765,1767727832331,-500.0,0.00013272,2]
[400568766,1767727832342,-500.0,0.00013272,2]
[400568767,1767727832352,-500.0,0.00013272,2]
[400568768,1767727832363,-500.0,0.00013272,2]
[400568769,1767727832377,-205.49704898,0.00013272,2]
[400568770,1767727832388,-391.0513895,0.00013273,2]
[400568771,1767727832397,-33500.04,0.00013273,2]
[400568772,1767727832410,-500.0,0.00013273,2]
[400568773,1767727832420,-500.0,0.00013273,2]
[400568774,1767727832433,-500.0,0.00013273,2]
[400568775,1767727832444,-2083.0,0.00013424,2]
[400568776,1767727832455,-500.0,0.00013424,2]
[400568777,1767727832466,-420.0,0.00013476,2]
[400568778,1767727832491,-1035.14038625,0.00013496,2]
[400568779,1767727832503,-500.0,0.00013496,2]
[400568780,1767727832513,-1035.14038625,0.00013496,2]
[400568781,1767727832524,-1035.14038625,0.00013496,2]
[400568782,1767727832534,-1035.14038625,0.00013496,2]
[400568783,1767727832544,-1035.14038625,0.00013496,2]
[400568784,1767727832557,-500.0,0.00013496,2]
[400568785,1767727832566,-1035.14038625,0.00013496,2]
[400568786,1767727832576,-1035.14038625,0.00013496,2]
[400568787,1767727832587,-1035.14038625,0.00013496,2]
[400568788,1767727832597,-156.18614335,0.00013496,2]
[400568789,1767727832607,-1035.14038625,0.00013496,2]
[400568790,1767727832617,-440.66962019,0.00013496,2]
[400568791,1767727832627,-1035.14038625,0.00013496,2]
[400568792,1767727832636,-500.0,0.00013496,2]
[400568793,1767727832646,-500.0,0.00013496,2]
[400568794,1767727832656,-1035.14038625,0.00013496,2]
[400568795,1767727832665,-1035.14038625,0.00013496,2]
[400568796,1767727832675,-1035.14038625,0.00013496,2]
[400568797,1767727832684,-1035.14038625,0.00013496,2]
[400568798,1767727832694,-1035.14038625,0.00013496,2]
[400568799,1767727832705,-1035.14038625,0.00013496,2]
[400568800,1767727832716,-1035.14038625,0.00013496,2]
[400568801,1767727832726,-1086.89740558,0.00013496,2]
[400568802,1767727832735,-1086.89740558,0.00013496,2]
[400568803,1767727832745,-1086.89740558,0.00013496,2]
[400568804,1767727832755,-1086.89740558,0.00013496,2]
[400568805,1767727832764,-1086.89740558,0.00013496,2]
[400568806,1767727832773,-1086.89740558,0.00013496,2]
[400568807,1767727832782,-1086.89740558,0.00013496,2]
[400568808,1767727832792,-1086.89740558,0.00013496,2]
[400568809,1767727832802,-129326.16774258,0.00013497,2]
[400568822,1767727837631,-870673.83225742,0.00013497,2]
[400568824,1767727837642,-2083.0,0.00013561,2]
[400568826,1767727837652,-500.0,0.00013561,2]
[400568828,1767727837661,-300.0,0.00013673,2]
[400568830,1767727837672,-2083.0,0.00013698,2]
[400568832,1767727837681,-300.0,0.00013698,2]
[400568834,1767727837690,-200.0,0.00013698,2]
[400568836,1767727837699,-500.81877837,0.00013699,2]
[400568838,1767727837709,-500.0,0.00013699,2]
[400568840,1767727837718,-500.54517436,0.00013699,2]
[400568842,1767727837727,-500.0,0.00013699,2]
[400568844,1767727837736,-443.89072638,0.00013699,2]
[400568845,1767727837745,-501.0386878,0.00013699,2]
[400568847,1767727837755,-500.0,0.00013699,2]
[400568848,1767727837764,-500.0,0.00013699,2]
[400568849,1767727837773,-500.0,0.00013699,2]
[400568850,1767727837782,-500.84667986,0.00013699,2]
[400568851,1767727837791,-1000.0,0.00013821,2]
[400568853,1767727837799,-1000.0,0.00013821,2]
[400568854,1767727837809,-1000.0,0.00013821,2]
[400568856,1767727837818,-2083.0,0.00013835,2]
[400568858,1767727837827,-7838.77162275,0.0001386,2]
[400568860,1767727837836,-200.0,0.00013945,2]
[400568862,1767727837845,-2083.0,0.00013972,2]
[400568864,1767727837854,-300.0,0.00013972,2]
[400568866,1767727837863,-300.0,0.00013972,2]
[400568868,1767727837873,-300.0,0.00013972,2]
[400568870,1767727837882,-300.0,0.00013972,2]
[400568872,1767727837891,-300.0,0.00013972,2]
[400568874,1767727837902,-300.0,0.00013972,2]
[400568876,1767727837911,-300.0,0.00013972,2]
[400568878,1767727837920,-300.0,0.00013972,2]
[400568880,1767727837930,-300.0,0.00013972,2]
[400568882,1767727837939,-300.0,0.00013972,2]
[400568884,1767727837948,-300.0,0.00013972,2]
[400568886,1767727837957,-300.0,0.00013972,2]
[400568888,1767727837967,-300.0,0.00013972,2]
[400568890,1767727837976,-300.0,0.00013972,2]
[400568892,1767727837985,-300.0,0.00013972,2]
[400568894,1767727837994,-2083.0,0.00014109,2]
[400568897,1767727838003,-273.79373952,0.00014219,2]
[400568898,1767727838012,-600.0,0.00014221,2]
[400568900,1767727838022,-2083.0,0.00014246,2]
[400568903,1767727838031,-1000.0,0.00014247,2]
[400568904,1767727838041,-1033.7772006,0.00014247,2]
[400568906,1767727838051,-1000.0,0.00014247,2]
[400568908,1767727838061,-1000.0,0.00014247,2]
[400568910,1767727838070,-1000.0,0.00014247,2]
[400568912,1767727838079,-600.0,0.0001425,2]
[400568915,1767727838089,-598.44792801,0.00014368,2]
[400568917,1767727838098,-1500.0,0.00014368,2]
[400568919,1767727838107,-1500.0,0.00014368,2]
[400568921,1767727838117,-2083.0,0.00014383,2]
[400568923,1767727838127,-2083.0,0.0001452,2]
[400568925,1767727838138,-2083.0,0.00014657,2]
[400568927,1767727838147,-900.0,0.00014768,2]
[400568929,1767727838157,-587.0,0.0001479,2]
[400568931,1767727838167,-2083.0,0.00014794,2]
[400568933,1767727838177,-1500.0,0.00014795,2]
[400568935,1767727838191,-1500.0,0.00014795,2]
[400568938,1767727838207,-1500.0,0.00014795,2]
[400568940,1767727838217,-1500.0,0.00014795,2]
[400568942,1767727838227,-100000.0,0.00014882,2]
[400568944,1767727838237,-2000.0,0.00014916,2]
[400568946,1767727838248,-2000.0,0.00014916,2]
[400568948,1767727838258,-2083.0,0.00014931,2]
[400568950,1767727838268,-1000.0,0.00015,2]
[400568952,1767727838279,-2412.43259168,0.00015,2]
[400568955,1767727838291,-531.35451386,0.00015,3]
[400568957,1767727838300,-10987.96789992,0.0001501,2]
[400568959,1767727838310,-2083.0,0.00015068,2]
[400568961,1767727838320,-273.72368144,0.0001515,20]
[400568963,1767727838330,-2083.0,0.00015205,2]
[400568965,1767727838340,-1200.0,0.00015316,2]
[400568967,1767727838350,-2083.0,0.00015342,2]
[400568969,1767727838360,-2000.0,0.00015342,2]
[400568971,1767727838369,-2000.0,0.00015342,2]
[400568973,1767727838379,-2000.0,0.00015342,2]
[400568975,1767727838389,-2000.0,0.00015342,2]
[400568977,1767727838399,-807.42,0.00015454,3]
[400568979,1767727838409,-2500.0,0.00015464,2]
[400568981,1767727838418,-2500.0,0.00015464,2]
[400568983,1767727838429,-2083.0,0.00015479,2]
[400568985,1767727838439,-2083.0,0.00015616,2]
[400568987,1767727838448,-720.0,0.00015675,2]
[400568989,1767727838458,-2083.0,0.00015753,2]
[400568991,1767727838468,-1500.0,0.00015864,2]
[400568993,1767727838481,-2083.0,0.0001589,2]
[400568995,1767727838490,-2500.0,0.0001589,2]
[400568997,1767727838500,-2500.0,0.0001589,2]
[400568999,1767727838510,-1192.18736728,0.0001589,2]
[400569001,1767727838521,-7838.0,0.00015939,2]
[400569003,1767727838531,-3000.0,0.00016012,2]
[400569005,1767727838541,-3000.0,0.00016012,2]
[400569007,1767727838552,-2083.0,0.00016027,2]
[400569010,1767727838563,-1041.66666667,0.00016032,2]
[400569012,1767727838573,-2083.0,0.00016164,2]
[400569014,1767727838583,-315.55888622,0.00016219,2]
[400569016,1767727838592,-823.0,0.00016231,2]
[400569018,1767727838602,-2083.0,0.00016301,2]
[400569020,1767727838611,-1800.0,0.00016412,2]
[400569022,1767727838620,-2083.0,0.00016438,2]
[400569024,1767727838630,-3000.0,0.00016438,2]
[400569026,1767727838640,-506.10461326,0.00016438,2]
[400569028,1767727838649,-1056.89714871,0.0001656,2]
[400569030,1767727838659,-387.16845353,0.0001656,2]
[400569032,1767727838669,-2085.44838029,0.00016575,2]
[400569034,1767727838679,-289.37550664,0.0001696,2]
[400569036,1767727838688,-500.0,0.00016973,2]
[400569038,1767727838698,-500.0,0.00016973,2]
[400569040,1767727838708,-500.0,0.00016973,2]
[400569042,1767727838717,-500.0,0.00016973,2]
[400569044,1767727838728,-500.0,0.00016973,2]
[400569046,1767727838737,-500.0,0.00016973,2]
[400569048,1767727838748,-500.0,0.00016973,2]
[400569050,1767727838757,-500.0,0.00016973,2]
[400569052,1767727838767,-500.0,0.00016973,2]
[400569054,1767727838777,-500.0,0.00016973,2]
[400569056,1767727838787,-500.0,0.00016973,2]
[400569058,1767727838797,-500.0,0.00016973,2]
[400569060,1767727838806,-500.0,0.00016973,2]
[400569062,1767727838816,-500.0,0.00016973,2]
[400569064,1767727838825,-500.0,0.00016973,2]
[400569066,1767727838835,-500.0,0.00016973,2]
[400569068,1767727838845,-511.14869574,0.00016973,2]
[400569070,1767727838856,-3500.0,0.00016986,2]
[400569072,1767727838866,-61162.51963186,0.00017,2]
[400569074,1767727838877,-163349.36340269,0.00017,7]
[400569076,1767727838888,-864.0,0.00017243,2]
[400569078,1767727838899,-203.5,0.00017336,2]
[400569080,1767727838909,-1918.71659724,0.00017534,2]
[400569082,1767727838919,-437.0,0.00017813,2]
[400569084,1767727838930,-151.0,0.000179,2]
[400569086,1767727838939,-151.0,0.000179,2]
[400569088,1767727838950,-151.0,0.000179,2]
[400569090,1767727838960,-151.0,0.000179,2]
[400569092,1767727838970,-151.0,0.000179,2]
[400569095,1767727838979,-151.0,0.000179,2]
[400569097,1767727838988,-151.0,0.000179,2]
[400569099,1767727838998,-151.0,0.000179,2]
[400569101,1767727839007,-151.0,0.000179,2]
[400569103,1767727839017,-69746.40730063,0.00018,5]
[400569105,1767727839027,-2999.999999,0.00018,2]
[400569107,1767727839036,-357.32403293,0.00018219,2]
[400569109,1767727839045,-42279.56725066,0.000189,2]
[400569111,1767727839055,-1000.0,0.00018967,2]
[400569113,1767727839064,-203.5,0.00019033,2]
[400569115,1767727839073,-176.91,0.00019178,2]
[400569117,1767727839082,-900.0,0.00019178,2]
[400569118,1767727839092,-284.75,0.000192,2]
[400569121,1767727839102,-240.04,0.000192,2]
[400569123,1767727839111,-2827.11,0.000192,2]
[400569124,1767727839121,-24466.81,0.000192,2]
[400569126,1767727839130,-167.75,0.000192,2]
[400569129,1767727839140,-497.28977626,0.00019205,5]
[400569131,1767727839149,-648.93473211,0.00019726,2]
[400569133,1767727839158,-210.16908342,0.0002,2]
[400569135,1767727839167,-1815.44742593,0.0002,2]
[400569137,1767727839176,-300.00038009,0.0002,7]
[400569139,1767727839186,-2000.0,0.0002,7]
[400569141,1767727839196,-342.0,0.00020027,3]
[400569143,1767727839206,-500.0,0.000201,7]
[400569145,1767727839215,-399.08917964,0.00020219,2]
[400569147,1767727839224,-2347.07115484,0.00020296,2]
[400569149,1767727839233,-203.5,0.00020729,2]
[400569151,1767727839242,-2347.07115484,0.00020791,2]
[400569153,1767727839252,-1000.0,0.00020864,2]
[400569155,1767727839261,-244.0,0.00020864,2]
[400569158,1767727839271,-2347.07115484,0.00020973,2]
[400569160,1767727839280,-500.0,0.00021,7]
[400569162,1767727839290,-277.05120127,0.00021,2]
[400569164,1767727839299,-1081.20658707,0.00021,10]
[400569166,1767727839308,-27032.71808146,0.00021,2]
[400569168,1767727839317,-2000.0,0.00021,7]
[400569170,1767727839327,-2347.07115484,0.0002136,2]
[400569172,1767727839336,-2347.07115484,0.00021485,2]
[400569174,1767727839346,-2347.07115484,0.00021675,2]
[400569176,1767727839356,-568.06899724,0.0002196,10]
[400569178,1767727839365,-710.22,0.00022,2]
[400569180,1767727839374,-84987.34441726,0.00022,2]
[400569182,1767727839383,-171.83181526,0.00022,10]
[400569184,1767727839392,-19696.50350082,0.00022,7]
[400569186,1767727839401,-2000.0,0.00022,7]
[400569188,1767727839410,-2347.07115484,0.00022056,2]
[400569190,1767727839419,-440.85432634,0.00022219,2]
[400569192,1767727839428,-196.0,0.00022219,6]
[400569194,1767727839438,-2347.07115484,0.00022423,2]
[400569195,1767727839447,-203.5,0.00022426,2]
[400569197,1767727839456,-300.0,0.00022466,2]
[400569200,1767727839466,-2347.07115484,0.00022466,2]
[400569202,1767727839477,-263.90236536,0.00022572,2]
[400569204,1767727839489,-216.99633361,0.00022572,2]
[400569205,1767727839499,-1000.0,0.000226,2]
[400569207,1767727839508,-1000.0,0.000226,2]
[400569209,1767727839518,-1000.0,0.000226,2]
[400569211,1767727839527,-1000.0,0.000226,2]
[400569213,1767727839536,-1000.0,0.000226,2]
[400569215,1767727839545,-1000.0,0.000226,2]
[400569218,1767727839556,-1000.0,0.000226,2]
[400569220,1767727839566,-1000.0,0.000226,2]
[400569221,1767727839575,-1000.0,0.000226,2]
[400569224,1767727839585,-1000.0,0.000226,2]
[400569225,1767727839595,-530.254158,0.000226,2]
[400569228,1767727839606,-263.90236536,0.00022707,9]
[400569230,1767727839615,-216.99633361,0.00022707,9]
[400569232,1767727839624,-216.99633361,0.00022843,17]
[400569234,1767727839633,-263.90236536,0.00022843,17]
[400569236,1767727839643,-2347.07115484,0.00022904,2]